[Event "Late-Titled-Tuesday-Blitz-July-09-2024"]
[Site "Chess.com"]
[Date "2024.07.09"]
[Round "9"]
[White "petr577"]
[Black "Antek_Radzimski"]
[Result "0-1"]
[WhiteElo "2418"]
[BlackElo "2566"]
[TimeControl "180+1"]
[EndTime "15:43:11 PDT"]
[Termination "Antek_Radzimski won on time"]

1. d4 {[%clk 0:03:00.9]} 1... Nf6 {[%clk 0:02:54.6]} 2. c4 {[%clk 0:03:00.7]}
2... e6 {[%clk 0:02:55.1]} 3. Nf3 {[%clk 0:03:00.5]} 3... Bb4+ {[%clk
0:02:55.3]} 4. Bd2 {[%clk 0:03:00.3]} 4... a5 {[%clk 0:02:55.5]} 5. Nc3 {[%clk
0:02:59]} 5... O-O {[%clk 0:02:54.4]} 6. e3 {[%clk 0:02:58.5]} 6... d5 {[%clk
0:02:54.1]} 7. Bd3 {[%clk 0:02:57.6]} 7... b6 {[%clk 0:02:54.6]} 8. cxd5 {[%clk
0:02:54.7]} 8... exd5 {[%clk 0:02:53]} 9. O-O {[%clk 0:02:39.7]} 9... Bb7 {[%clk
0:02:52.3]} 10. Ne5 {[%clk 0:02:36]} 10... Be7 {[%clk 0:02:48.1]} 11. f4 {[%clk
0:02:25.3]} 11... c5 {[%clk 0:02:47.8]} 12. Rc1 {[%clk 0:02:08.9]} 12... Nc6
{[%clk 0:02:46.7]} 13. Nb5 {[%clk 0:02:00.4]} 13... c4 {[%clk 0:02:38.4]} 14.
Bb1 {[%clk 0:01:56.5]} 14... Rc8 {[%clk 0:02:37.2]} 15. Qf3 {[%clk 0:01:30.7]}
15... Ba6 {[%clk 0:02:35.8]} 16. Nc3 {[%clk 0:01:20.8]} 16... b5 {[%clk
0:02:35.1]} 17. g4 {[%clk 0:01:20.5]} 17... b4 {[%clk 0:02:32.6]} 18. Ne2 {[%clk
0:01:18.6]} 18... Ne4 {[%clk 0:02:12.7]} 19. Be1 {[%clk 0:01:01.6]} 19... Nxe5
{[%clk 0:02:01.2]} 20. fxe5 {[%clk 0:00:38.7]} 20... Ng5 {[%clk 0:02:00.8]} 21.
Qg2 {[%clk 0:00:36.3]} 21... Ne6 {[%clk 0:01:56.1]} 22. Nf4 {[%clk 0:00:33.4]}
22... c3 {[%clk 0:01:53]} 23. Rf3 {[%clk 0:00:31.3]} 23... cxb2 {[%clk
0:01:52.1]} 24. Qxb2 {[%clk 0:00:30.9]} 24... Nxf4 {[%clk 0:01:41.3]} 25. exf4
{[%clk 0:00:28.3]} 25... Qb6 {[%clk 0:01:39.9]} 26. Bf2 {[%clk 0:00:23.1]} 26...
Rxc1+ {[%clk 0:01:38.6]} 27. Qxc1 {[%clk 0:00:24]} 27... Rc8 {[%clk 0:01:38.8]}
28. Qd2 {[%clk 0:00:20.6]} 28... Qc6 {[%clk 0:01:35.2]} 29. Bd3 {[%clk
0:00:16.3]} 29... Bxd3 {[%clk 0:01:29.2]} 30. Rxd3 {[%clk 0:00:16.5]} 30... Qc1+
{[%clk 0:01:28.9]} 31. Kg2 {[%clk 0:00:17]} 31... Qb1 {[%clk 0:01:20]} 32. f5
{[%clk 0:00:16.6]} 32... Rc2 {[%clk 0:01:17.9]} 33. Qe3 {[%clk 0:00:16.8]} 33...
Bh4 {[%clk 0:01:16.9]} 34. Rd2 {[%clk 0:00:15.9]} 34... Qxa2 {[%clk 0:01:09]}
35. Bxh4 {[%clk 0:00:03.6]} 35... Rxd2+ {[%clk 0:01:09.1]} 36. Kf3 {[%clk
0:00:03.2]} 36... Qa3 {[%clk 0:00:59.9]} 0-1

[Event "Late-Titled-Tuesday-Blitz-July-09-2024"]
[Site "Chess.com"]
[Date "2024.07.09"]
[Round "9"]
[White "AlexanderMatlak"]
[Black "Navyblue1"]
[Result "1-0"]
[WhiteElo "2500"]
[BlackElo "2126"]
[TimeControl "180+1"]
[EndTime "15:43:13 PDT"]
[Termination "AlexanderMatlak won by resignation"]

1. c4 {[%clk 0:02:55.4]} 1... Nf6 {[%clk 0:02:58.1]} 2. Nf3 {[%clk 0:02:55.6]}
2... d5 {[%clk 0:02:53]} 3. cxd5 {[%clk 0:02:55]} 3... Nxd5 {[%clk 0:02:53.9]}
4. Nc3 {[%clk 0:02:55.3]} 4... Nb6 {[%clk 0:02:53.1]} 5. g3 {[%clk 0:02:54.2]}
5... g6 {[%clk 0:02:43.3]} 6. Bg2 {[%clk 0:02:53.4]} 6... Bg7 {[%clk 0:02:43.3]}
7. h4 {[%clk 0:02:54.1]} 7... h5 {[%clk 0:02:39.3]} 8. Ng5 {[%clk 0:02:53.6]}
8... O-O {[%clk 0:02:35.4]} 9. O-O {[%clk 0:02:51.9]} 9... c5 {[%clk 0:02:31.2]}
10. a4 {[%clk 0:02:46.6]} 10... N6d7 {[%clk 0:02:20.8]} 11. a5 {[%clk
0:02:44.1]} 11... Na6 {[%clk 0:02:09.8]} 12. Qb3 {[%clk 0:02:31.3]} 12... Nf6
{[%clk 0:01:53.3]} 13. d3 {[%clk 0:02:24.3]} 13... Nc7 {[%clk 0:01:41.5]} 14.
Be3 {[%clk 0:02:15.5]} 14... Na6 {[%clk 0:01:12.4]} 15. Rfc1 {[%clk 0:01:44.3]}
15... e5 {[%clk 0:01:04.5]} 16. Nce4 {[%clk 0:01:35.9]} 16... Nxe4 {[%clk
0:01:02]} 17. Bxe4 {[%clk 0:01:36.8]} 17... Qe7 {[%clk 0:00:56.2]} 18. Bxg6
{[%clk 0:01:31.7]} 18... Rb8 {[%clk 0:00:51.9]} 19. Bxh5 {[%clk 0:01:18.7]}
19... b6 {[%clk 0:00:37.6]} 20. axb6 {[%clk 0:01:09]} 20... Rxb6 {[%clk
0:00:35.6]} 21. Qa3 {[%clk 0:01:07.2]} 21... Be6 {[%clk 0:00:18.8]} 22. Bxc5
{[%clk 0:00:50]} 22... Nxc5 {[%clk 0:00:17.4]} 23. Qxc5 {[%clk 0:00:50.9]} 23...
Qxc5 {[%clk 0:00:15.5]} 24. Rxc5 {[%clk 0:00:51.8]} 24... Rxb2 {[%clk
0:00:15.4]} 25. Nxe6 {[%clk 0:00:50.7]} 25... fxe6 {[%clk 0:00:15.1]} 26. Rxa7
{[%clk 0:00:50.2]} 26... Rb1+ {[%clk 0:00:14.4]} 27. Kg2 {[%clk 0:00:49.1]}
27... e4 {[%clk 0:00:15]} 28. Rg5 {[%clk 0:00:33.7]} 1-0

[Event "Late-Titled-Tuesday-Blitz-July-09-2024"]
[Site "Chess.com"]
[Date "2024.07.09"]
[Round "9"]
[White "ExchangeAB"]
[Black "Snowball-03"]
[Result "1-0"]
[WhiteElo "2486"]
[BlackElo "2597"]
[TimeControl "180+1"]
[EndTime "15:43:14 PDT"]
[Termination "ExchangeAB won on time"]

1. d4 {[%clk 0:03:00.9]} 1... Nf6 {[%clk 0:02:59.5]} 2. Nf3 {[%clk 0:03:01.4]}
2... g6 {[%clk 0:02:59.2]} 3. g3 {[%clk 0:03:01.9]} 3... Bg7 {[%clk 0:02:59.8]}
4. Bg2 {[%clk 0:03:02.6]} 4... O-O {[%clk 0:03:00.3]} 5. O-O {[%clk 0:03:03.2]}
5... d6 {[%clk 0:03:01]} 6. b3 {[%clk 0:03:03.7]} 6... c5 {[%clk 0:03:00.5]} 7.
dxc5 {[%clk 0:03:01.6]} 7... Ne4 {[%clk 0:02:55.3]} 8. c3 {[%clk 0:03:01.6]}
8... Nxc5 {[%clk 0:02:48.2]} 9. Bb2 {[%clk 0:03:00.3]} 9... Nc6 {[%clk
0:02:47.2]} 10. Qc1 {[%clk 0:02:58.6]} 10... Bd7 {[%clk 0:02:43]} 11. c4 {[%clk
0:02:58.2]} 11... Bxb2 {[%clk 0:02:43.9]} 12. Qxb2 {[%clk 0:02:58.4]} 12... a5
{[%clk 0:02:43.7]} 13. Nc3 {[%clk 0:02:58.1]} 13... Rb8 {[%clk 0:02:32.5]} 14.
a4 {[%clk 0:02:54.9]} 14... Ne6 {[%clk 0:02:04]} 15. Rad1 {[%clk 0:02:54]} 15...
Nb4 {[%clk 0:02:02.2]} 16. Nd4 {[%clk 0:02:49.9]} 16... Nxd4 {[%clk 0:01:59.6]}
17. Rxd4 {[%clk 0:02:50.8]} 17... Qb6 {[%clk 0:01:59.6]} 18. Rfd1 {[%clk
0:02:49.7]} 18... Rbc8 {[%clk 0:01:53.6]} 19. Qa1 {[%clk 0:02:34.8]} 19... Nc2
{[%clk 0:01:47.7]} 20. Nd5 {[%clk 0:02:24.3]} 20... Qd8 {[%clk 0:01:39.8]} 21.
Qc3 {[%clk 0:02:09.8]} 21... Nxd4 {[%clk 0:01:39.4]} 22. Qxd4 {[%clk 0:02:08]}
22... Bc6 {[%clk 0:01:35.5]} 23. h4 {[%clk 0:01:59.5]} 23... Bxd5 {[%clk
0:01:33.1]} 24. Bxd5 {[%clk 0:02:00.4]} 24... b6 {[%clk 0:01:30]} 25. Rd3 {[%clk
0:01:59.4]} 25... e6 {[%clk 0:00:57]} 26. Bf3 {[%clk 0:01:58.5]} 26... d5 {[%clk
0:00:44.9]} 27. cxd5 {[%clk 0:01:56.2]} 27... exd5 {[%clk 0:00:45.8]} 28. Bxd5
{[%clk 0:01:48.5]} 28... Qe7 {[%clk 0:00:28.2]} 29. e4 {[%clk 0:01:43.9]} 29...
Rc1+ {[%clk 0:00:18.4]} 30. Kg2 {[%clk 0:01:44]} 30... Rfc8 {[%clk 0:00:17.3]}
31. Rf3 {[%clk 0:01:42]} 31... Rf8 {[%clk 0:00:16]} 32. Qxb6 {[%clk 0:01:40.4]}
32... Qe5 {[%clk 0:00:04.2]} 33. Qf6 {[%clk 0:01:27.7]} 33... Qxf6 {[%clk
0:00:03.3]} 34. Rxf6 {[%clk 0:01:28.6]} 34... Rb8 {[%clk 0:00:02.6]} 35. Rxf7
{[%clk 0:01:27]} 35... Kh8 {[%clk 0:00:02.5]} 36. Ra7 {[%clk 0:01:26]} 36... Rc2
{[%clk 0:00:01]} 37. Rxa5 {[%clk 0:00:56.8]} 37... Rf8 {[%clk 0:00:01]} 38. Ra8
{[%clk 0:00:57.4]} 1-0

[Event "Late-Titled-Tuesday-Blitz-July-09-2024"]
[Site "Chess.com"]
[Date "2024.07.09"]
[Round "9"]
[White "Byniolus"]
[Black "Chigorinetz"]
[Result "1-0"]
[WhiteElo "2804"]
[BlackElo "2618"]
[TimeControl "180+1"]
[EndTime "15:43:16 PDT"]
[Termination "Byniolus won by checkmate"]

1. d4 {[%clk 0:03:00.9]} 1... d5 {[%clk 0:02:59.4]} 2. Nf3 {[%clk 0:03:00.7]}
2... Nc6 {[%clk 0:02:59.3]} 3. Bf4 {[%clk 0:03:00.8]} 3... Bg4 {[%clk
0:02:59.2]} 4. Nbd2 {[%clk 0:03:00.5]} 4... e6 {[%clk 0:02:59.4]} 5. h3 {[%clk
0:03:00.6]} 5... Bh5 {[%clk 0:02:58.9]} 6. c3 {[%clk 0:03:00.9]} 6... Bd6 {[%clk
0:02:58.3]} 7. Bxd6 {[%clk 0:03:01.1]} 7... cxd6 {[%clk 0:02:57.8]} 8. Qb3
{[%clk 0:02:59.2]} 8... Rb8 {[%clk 0:02:53.4]} 9. e3 {[%clk 0:02:57.5]} 9... Nf6
{[%clk 0:02:52.7]} 10. Be2 {[%clk 0:02:56.2]} 10... O-O {[%clk 0:02:52]} 11. O-O
{[%clk 0:02:56.2]} 11... b5 {[%clk 0:02:52.5]} 12. Rfc1 {[%clk 0:02:48.8]} 12...
Qb6 {[%clk 0:02:48.4]} 13. Qd1 {[%clk 0:02:45.8]} 13... Rfc8 {[%clk 0:02:44.4]}
14. b4 {[%clk 0:02:34.5]} 14... a5 {[%clk 0:02:41.6]} 15. a3 {[%clk 0:02:22.5]}
15... h6 {[%clk 0:02:40.7]} 16. Rab1 {[%clk 0:02:17.2]} 16... Bg6 {[%clk
0:02:38.6]} 17. Rb2 {[%clk 0:02:15.2]} 17... Qa7 {[%clk 0:02:35]} 18. a4 {[%clk
0:02:04]} 18... axb4 {[%clk 0:02:25.2]} 19. axb5 {[%clk 0:02:04.1]} 19... bxc3
{[%clk 0:02:24.2]} 20. Rxc3 {[%clk 0:02:05]} 20... Ne7 {[%clk 0:02:17.6]} 21.
Qc1 {[%clk 0:01:49.5]} 21... Rxc3 {[%clk 0:02:15.2]} 22. Qxc3 {[%clk 0:01:50.4]}
22... Qa1+ {[%clk 0:02:12.9]} 23. Kh2 {[%clk 0:01:48.1]} 23... Rc8 {[%clk
0:02:11.9]} 24. Qb4 {[%clk 0:01:40.9]} 24... Rc1 {[%clk 0:02:11.1]} 25. Nf1
{[%clk 0:00:41.2]} 25... Rxf1 {[%clk 0:02:09.6]} 26. Bxf1 {[%clk 0:00:42.1]}
26... Qxf1 {[%clk 0:02:09.2]} 27. b6 {[%clk 0:00:41.6]} 27... Ne4 {[%clk
0:01:51.7]} 28. b7 {[%clk 0:00:41]} 28... Nc6 {[%clk 0:01:50.1]} 29. Qa4 {[%clk
0:00:31.9]} 29... Qc4 {[%clk 0:01:40]} 30. Qxc6 {[%clk 0:00:14.5]} 30... Qxc6
{[%clk 0:01:38.9]} 31. b8=Q+ {[%clk 0:00:15.4]} 31... Kh7 {[%clk 0:01:38.9]} 32.
Qf8 {[%clk 0:00:09.7]} 32... Nf6 {[%clk 0:01:25.1]} 33. Rb8 {[%clk 0:00:09.2]}
33... Bh5 {[%clk 0:01:23.7]} 34. Nh4 {[%clk 0:00:08.7]} 34... Ne8 {[%clk
0:00:48.3]} 35. Rxe8 {[%clk 0:00:08.1]} 35... f5 {[%clk 0:00:47.2]} 36. Qh8#
{[%clk 0:00:07.3]} 1-0

[Event "Late-Titled-Tuesday-Blitz-July-09-2024"]
[Site "Chess.com"]
[Date "2024.07.09"]
[Round "9"]
[White "jk13"]
[Black "jbking07"]
[Result "0-1"]
[WhiteElo "2669"]
[BlackElo "2489"]
[TimeControl "180+1"]
[EndTime "15:43:20 PDT"]
[Termination "jbking07 won by resignation"]

1. e4 {[%clk 0:03:00.9]} 1... c5 {[%clk 0:02:58.8]} 2. c3 {[%clk 0:03:01.3]}
2... Nf6 {[%clk 0:02:57.4]} 3. e5 {[%clk 0:03:01.8]} 3... Nd5 {[%clk 0:02:58]}
4. Bc4 {[%clk 0:03:02.6]} 4... Nb6 {[%clk 0:02:57.5]} 5. Bb3 {[%clk 0:03:03.3]}
5... Nc6 {[%clk 0:02:57.4]} 6. Nf3 {[%clk 0:03:03.4]} 6... d5 {[%clk 0:02:57.2]}
7. exd6 {[%clk 0:03:04.3]} 7... Qxd6 {[%clk 0:02:56.7]} 8. Qe2 {[%clk
0:03:04.8]} 8... e6 {[%clk 0:02:56.1]} 9. O-O {[%clk 0:03:04.6]} 9... Be7 {[%clk
0:02:56.3]} 10. d4 {[%clk 0:03:05.3]} 10... cxd4 {[%clk 0:02:55.8]} 11. Rd1
{[%clk 0:03:06.1]} 11... O-O {[%clk 0:02:55.3]} 12. cxd4 {[%clk 0:03:06.6]}
12... Nd5 {[%clk 0:02:54.2]} 13. Nc3 {[%clk 0:03:06.3]} 13... b6 {[%clk
0:02:46.7]} 14. h4 {[%clk 0:02:37.4]} 14... Bb7 {[%clk 0:02:44.3]} 15. Nxd5
{[%clk 0:02:19.1]} 15... exd5 {[%clk 0:02:43.9]} 16. Bg5 {[%clk 0:02:15.4]}
16... Bxg5 {[%clk 0:02:41.8]} 17. hxg5 {[%clk 0:02:15.7]} 17... Rae8 {[%clk
0:02:38.3]} 18. Qd2 {[%clk 0:02:12.6]} 18... Na5 {[%clk 0:02:11.4]} 19. Bc2
{[%clk 0:02:03.7]} 19... Nc4 {[%clk 0:02:10.7]} 20. Qd3 {[%clk 0:01:59.5]} 20...
g6 {[%clk 0:02:09.2]} 21. Rab1 {[%clk 0:01:56.8]} 21... Bc8 {[%clk 0:02:02.2]}
22. Qc3 {[%clk 0:01:34.5]} 22... Bg4 {[%clk 0:01:57.3]} 23. Re1 {[%clk
0:01:06.5]} 23... Bxf3 {[%clk 0:01:52.7]} 24. Qxf3 {[%clk 0:00:59.4]} 24... Nd2
{[%clk 0:01:46.3]} 25. Qd3 {[%clk 0:00:40.1]} 25... Nxb1 {[%clk 0:01:45.3]} 26.
Rxb1 {[%clk 0:00:41]} 26... Qf4 {[%clk 0:01:38.9]} 27. Bb3 {[%clk 0:00:38.1]}
27... Qxg5 {[%clk 0:01:38]} 28. g3 {[%clk 0:00:38.6]} 28... Re7 {[%clk
0:01:34.6]} 29. Qb5 {[%clk 0:00:38.7]} 29... Qf6 {[%clk 0:01:27.8]} 30. Qxd5
{[%clk 0:00:34.1]} 30... Re2 {[%clk 0:01:27.5]} 31. Rf1 {[%clk 0:00:31.9]} 31...
Rd2 {[%clk 0:01:27.5]} 32. Qb7 {[%clk 0:00:30.2]} 32... Qxd4 {[%clk 0:01:23]}
33. Qxa7 {[%clk 0:00:28.8]} 33... Rxb2 {[%clk 0:01:22]} 34. Qb7 {[%clk
0:00:25.2]} 34... Qf6 {[%clk 0:01:20.5]} 35. Kg2 {[%clk 0:00:22.9]} 35... Re8
{[%clk 0:01:20.5]} 36. Bc4 {[%clk 0:00:19.4]} 36... Rd8 {[%clk 0:01:19.7]} 37.
Bd5 {[%clk 0:00:17.7]} 37... Rd2 {[%clk 0:01:11]} 38. Bb3 {[%clk 0:00:16.8]}
38... Kg7 {[%clk 0:01:00.7]} 39. Qc7 {[%clk 0:00:15.6]} 39... R8d7 {[%clk
0:00:59]} 40. Qc8 {[%clk 0:00:14.6]} 40... Re7 {[%clk 0:00:56.4]} 41. Bc4 {[%clk
0:00:13.4]} 41... Rc2 {[%clk 0:00:54.7]} 42. Qa6 {[%clk 0:00:14]} 42... Qd4
{[%clk 0:00:52.3]} 43. Qb5 {[%clk 0:00:12.6]} 43... Rxc4 {[%clk 0:00:50.4]} 0-1

[Event "Late-Titled-Tuesday-Blitz-July-09-2024"]
[Site "Chess.com"]
[Date "2024.07.09"]
[Round "9"]
[White "fugadelafuga"]
[Black "karinachess1"]
[Result "0-1"]
[WhiteElo "2461"]
[BlackElo "2679"]
[TimeControl "180+1"]
[EndTime "15:43:20 PDT"]
[Termination "karinachess1 won by resignation"]

1. c4 {[%clk 0:03:00.9]} 1... e6 {[%clk 0:02:58.5]} 2. Nf3 {[%clk 0:02:59.6]}
2... Nf6 {[%clk 0:02:58.3]} 3. b3 {[%clk 0:03:00]} 3... d5 {[%clk 0:02:54.3]} 4.
Bb2 {[%clk 0:02:59.9]} 4... Be7 {[%clk 0:02:54.8]} 5. e3 {[%clk 0:02:56.8]} 5...
Nbd7 {[%clk 0:02:54.5]} 6. Be2 {[%clk 0:02:57.3]} 6... b6 {[%clk 0:02:54.6]} 7.
cxd5 {[%clk 0:02:55.6]} 7... exd5 {[%clk 0:02:49.3]} 8. O-O {[%clk 0:02:54.8]}
8... O-O {[%clk 0:02:46.8]} 9. d4 {[%clk 0:02:51.7]} 9... c5 {[%clk 0:02:46.9]}
10. dxc5 {[%clk 0:02:50.9]} 10... bxc5 {[%clk 0:02:42]} 11. Nc3 {[%clk
0:02:51.8]} 11... Bb7 {[%clk 0:02:41.4]} 12. Rc1 {[%clk 0:02:51.1]} 12... Rc8
{[%clk 0:02:41]} 13. Na4 {[%clk 0:02:49.6]} 13... Ne4 {[%clk 0:02:36.5]} 14. Ne5
{[%clk 0:02:44.3]} 14... Bd6 {[%clk 0:02:26.2]} 15. Nxd7 {[%clk 0:02:40.4]}
15... Qxd7 {[%clk 0:02:27.1]} 16. Bd3 {[%clk 0:02:28.1]} 16... Qe7 {[%clk
0:02:17.7]} 17. Qg4 {[%clk 0:02:24.6]} 17... f5 {[%clk 0:02:11.4]} 18. Qh3
{[%clk 0:02:14.6]} 18... Rce8 {[%clk 0:02:07.8]} 19. Bxe4 {[%clk 0:02:08.1]}
19... fxe4 {[%clk 0:02:01.3]} 20. Ba3 {[%clk 0:01:52]} 20... Bc8 {[%clk
0:02:00.5]} 21. Qh5 {[%clk 0:01:50.4]} 21... Rf5 {[%clk 0:01:59.2]} 22. Qe2
{[%clk 0:01:42.4]} 22... Qh4 {[%clk 0:01:41.3]} 23. g3 {[%clk 0:01:36.4]} 23...
Qh3 {[%clk 0:01:41.5]} 24. Bxc5 {[%clk 0:01:25.3]} 24... Rh5 {[%clk 0:01:24.4]}
25. f4 {[%clk 0:01:24.9]} 25... exf3 {[%clk 0:01:23]} 26. Rxf3 {[%clk
0:01:24.7]} 26... Bg4 {[%clk 0:01:21.3]} 27. Rcf1 {[%clk 0:00:56.6]} 27... Bxc5
{[%clk 0:00:58.8]} 28. Nxc5 {[%clk 0:00:53.7]} 28... Bxf3 {[%clk 0:00:56.5]} 29.
Rxf3 {[%clk 0:00:52.7]} 29... Rhe5 {[%clk 0:00:54]} 30. Nd3 {[%clk 0:00:47.8]}
30... Re4 {[%clk 0:00:49.2]} 31. Nf4 {[%clk 0:00:47.1]} 31... Qd7 {[%clk
0:00:49.3]} 32. Qd3 {[%clk 0:00:45.3]} 32... d4 {[%clk 0:00:44.7]} 33. exd4
{[%clk 0:00:30.1]} 33... Rxd4 {[%clk 0:00:44.7]} 34. Qa6 {[%clk 0:00:25.8]}
34... Rd1+ {[%clk 0:00:43.7]} 35. Kg2 {[%clk 0:00:25.9]} 35... Rd2+ {[%clk
0:00:40.9]} 36. Kg1 {[%clk 0:00:23.2]} 36... Re1+ {[%clk 0:00:39.4]} 37. Rf1
{[%clk 0:00:23.5]} 37... Qd4+ {[%clk 0:00:39.5]} 38. Kh1 {[%clk 0:00:23.6]}
38... Rxf1+ {[%clk 0:00:36.5]} 39. Qxf1 {[%clk 0:00:22.7]} 39... Rd1 {[%clk
0:00:36.9]} 0-1

[Event "Late-Titled-Tuesday-Blitz-July-09-2024"]
[Site "Chess.com"]
[Date "2024.07.09"]
[Round "9"]
[White "stollenmonster"]
[Black "Keaton87"]
[Result "0-1"]
[WhiteElo "2845"]
[BlackElo "2666"]
[TimeControl "180+1"]
[EndTime "15:43:24 PDT"]
[Termination "Keaton87 won by resignation"]

1. e4 {[%clk 0:03:00.9]} 1... c5 {[%clk 0:02:48.9]} 2. Nf3 {[%clk 0:03:00.6]}
2... d6 {[%clk 0:02:49]} 3. d4 {[%clk 0:03:00.2]} 3... cxd4 {[%clk 0:02:49.7]}
4. Nxd4 {[%clk 0:03:00.8]} 4... Nf6 {[%clk 0:02:50.2]} 5. Nc3 {[%clk 0:03:01.1]}
5... g6 {[%clk 0:02:50.8]} 6. g3 {[%clk 0:03:01.2]} 6... Nc6 {[%clk 0:02:50.3]}
7. Nde2 {[%clk 0:03:01]} 7... Bg7 {[%clk 0:02:49.9]} 8. Bg2 {[%clk 0:03:01.5]}
8... Be6 {[%clk 0:02:49.9]} 9. Nd5 {[%clk 0:02:59.7]} 9... O-O {[%clk
0:02:47.8]} 10. h3 {[%clk 0:03:00.2]} 10... Bxd5 {[%clk 0:02:45.1]} 11. exd5
{[%clk 0:02:59.8]} 11... Ne5 {[%clk 0:02:45.7]} 12. a4 {[%clk 0:02:58.9]} 12...
Rc8 {[%clk 0:02:38.5]} 13. Ra2 {[%clk 0:02:55.9]} 13... a6 {[%clk 0:02:21]} 14.
O-O {[%clk 0:02:54.6]} 14... b5 {[%clk 0:02:20.9]} 15. axb5 {[%clk 0:02:55]}
15... axb5 {[%clk 0:02:21.2]} 16. b3 {[%clk 0:02:55.5]} 16... Ra8 {[%clk
0:02:18.4]} 17. Rxa8 {[%clk 0:02:54.9]} 17... Qxa8 {[%clk 0:02:19.3]} 18. Be3
{[%clk 0:02:52.7]} 18... Rc8 {[%clk 0:02:14.4]} 19. Qd2 {[%clk 0:02:51.5]} 19...
Qa2 {[%clk 0:02:04.2]} 20. Nd4 {[%clk 0:02:48.5]} 20... Rc5 {[%clk 0:01:42.3]}
21. Bh6 {[%clk 0:01:06.2]} 21... Bxh6 {[%clk 0:01:21.1]} 22. Qxh6 {[%clk
0:01:07.1]} 22... Nxd5 {[%clk 0:01:20.7]} 23. f4 {[%clk 0:00:30.8]} 23... Qb2
{[%clk 0:01:13.3]} 24. Rd1 {[%clk 0:00:25.3]} 24... Ne3 {[%clk 0:01:07.5]} 25.
fxe5 {[%clk 0:00:14.6]} 25... Nxd1 {[%clk 0:01:07.5]} 26. Nf3 {[%clk 0:00:15.2]}
26... Rxc2 {[%clk 0:01:01.7]} 27. Bf1 {[%clk 0:00:14.6]} 27... Rc3 {[%clk
0:00:47.3]} 28. Nd2 {[%clk 0:00:07.5]} 28... Re3 {[%clk 0:00:38.5]} 29. e6
{[%clk 0:00:06.1]} 29... fxe6 {[%clk 0:00:28.3]} 0-1

[Event "Late-Titled-Tuesday-Blitz-July-09-2024"]
[Site "Chess.com"]
[Date "2024.07.09"]
[Round "9"]
[White "Maluco_do_Natal_00"]
[Black "glucolisis04"]
[Result "1-0"]
[WhiteElo "2020"]
[BlackElo "2255"]
[TimeControl "180+1"]
[EndTime "15:43:30 PDT"]
[Termination "Maluco_do_Natal_00 won by resignation"]

1. e4 {[%clk 0:02:59.6]} 1... c5 {[%clk 0:03:00.6]} 2. Nf3 {[%clk 0:02:58.7]}
2... Nc6 {[%clk 0:03:00.5]} 3. d4 {[%clk 0:02:59.2]} 3... cxd4 {[%clk
0:03:00.8]} 4. Nxd4 {[%clk 0:03:00.1]} 4... Nf6 {[%clk 0:03:00.9]} 5. Nc3 {[%clk
0:03:00.4]} 5... e5 {[%clk 0:03:01.4]} 6. Ndb5 {[%clk 0:03:00.4]} 6... d6 {[%clk
0:03:01.1]} 7. Bg5 {[%clk 0:03:00.8]} 7... a6 {[%clk 0:03:01.3]} 8. Bxf6 {[%clk
0:03:01.1]} 8... gxf6 {[%clk 0:03:01.4]} 9. Na3 {[%clk 0:03:00.9]} 9... b5
{[%clk 0:03:00]} 10. Nd5 {[%clk 0:03:01]} 10... Bg7 {[%clk 0:03:00]} 11. Bd3
{[%clk 0:03:00.9]} 11... Ne7 {[%clk 0:02:58.8]} 12. Nxe7 {[%clk 0:02:40.1]}
12... Qxe7 {[%clk 0:02:57.5]} 13. O-O {[%clk 0:02:37.6]} 13... O-O {[%clk
0:02:49.3]} 14. c3 {[%clk 0:02:34.3]} 14... f5 {[%clk 0:02:22.9]} 15. exf5
{[%clk 0:02:26.6]} 15... d5 {[%clk 0:02:19.8]} 16. Qh5 {[%clk 0:01:59.4]} 16...
Qf6 {[%clk 0:02:03.2]} 17. Rad1 {[%clk 0:01:33.7]} 17... Bb7 {[%clk 0:01:13.4]}
18. Nc2 {[%clk 0:01:24.7]} 18... Rad8 {[%clk 0:01:10.5]} 19. Be2 {[%clk
0:01:08.1]} 19... d4 {[%clk 0:01:06.8]} 20. cxd4 {[%clk 0:00:59.8]} 20... exd4
{[%clk 0:01:06.5]} 21. Bf3 {[%clk 0:00:51.9]} 21... Bc8 {[%clk 0:00:27.7]} 22.
g4 {[%clk 0:00:44]} 22... d3 {[%clk 0:00:22.6]} 23. Ne3 {[%clk 0:00:41.2]} 23...
Qxb2 {[%clk 0:00:19.3]} 24. g5 {[%clk 0:00:37.1]} 24... Kh8 {[%clk 0:00:15.7]}
25. f6 {[%clk 0:00:29.8]} 25... Bxf6 {[%clk 0:00:16.1]} 26. Be4 {[%clk
0:00:25.1]} 26... Bf5 {[%clk 0:00:03.7]} 27. Bxf5 {[%clk 0:00:23.8]} 1-0